bitfinex/quotes_ETHUSD_20260306
["timestamp","ask_amount","ask_price","bid_price","bid_amount"]
[1772787075394,0.23571241,2080.8,2080.4,0.0011]
[1772787075993,0.23571241,2080.7,2080.4,0.0011]
[1772787076198,0.23571241,2080.8,2080.4,0.0011]
[1772787077085,1.20151871,2080.7,2080.4,0.0011]
[1772787077290,1.43722114,2080.8,2080.4,0.0011]
[1772787077491,0.23571241,2080.7,2080.4,0.0011]
[1772787078075,1.20150873,2080.8,2080.4,0.0011]
[1772787078076,0.23571241,2080.6,2080.4,0.0011]
[1772787078275,0.23571241,2080.7,2080.4,0.0011]
[1772787079304,1.43728887,2080.6,2080.4,0.0011]
[1772787079493,0.23571241,2080.6,2080.4,0.0011]
[1772787082779,0.001,2081.1,2080.4,0.0011]
[1772787082981,0.23571241,2081.0,2080.4,0.0011]
[1772787084580,1.43711564,2080.9,2080.4,0.0011]
[1772787085381,1.43711564,2080.9,2080.6,0.001]
[1772787086881,0.23571241,2080.8,2080.6,0.001]
[1772787087294,0.23571241,2080.7,2080.6,0.001]
[1772787087488,0.23571241,2080.8,2080.6,0.001]
[1772787089486,1.20151871,2080.7,2080.6,0.001]
[1772787090811,0.23571241,2080.7,2080.6,0.001]
[1772787098125,1.2013633,2081.0,2080.6,0.001]
[1772787098323,0.001,2081.1,2080.6,0.001]
[1772787098495,0.23571241,2081.0,2080.6,0.001]
[1772787100120,0.23571241,2080.9,2080.6,0.001]
[1772787102618,1.43718284,2080.8,2080.6,0.001]
[1772787102923,0.23571241,2080.8,2080.6,0.001]
[1772787104806,0.23571241,2080.7,2080.6,0.001]
[1772787105215,0.23571241,2080.6,2080.2,0.0011]
[1772787105416,2.3038869,2080.4,2079.4,0.001]
[1772787105631,2.3038869,2080.1,2079.4,0.001]
[1772787105943,2.3038869,2080.1,2078.2,4.81176734]
[1772787105944,2.3038869,2079.9,2078.2,4.81176734]
[1772787106111,2.3038869,2079.8,2078.2,4.81176734]
[1772787106312,3.28570654,2079.7,2078.3,0.0011]
[1772787106513,3.28570654,2079.6,2078.3,1.3121]
[1772787106743,3.28570654,2079.5,2078.3,1.3121]
[1772787106918,2.87214489,2079.4,2078.4,1.20394834]
[1772787107111,1.43789259,2079.6,2078.4,1.20394834]
[1772787107319,0.23571241,2079.5,2078.5,0.0011]
[1772787108334,0.23571241,2079.4,2078.6,1.3121]
[1772787108506,3.27586975,2079.3,2078.2,2.5139372]
[1772787108707,3.27584608,2079.2,2078.2,2.5139372]
[1772787108917,1.2023277,2079.3,2078.3,0.0011]
[1772787109119,2.86361655,2079.2,2078.5,0.001]
[1772787109318,1.2023277,2079.3,2078.5,0.001]
[1772787109530,0.23571241,2079.2,2078.6,0.0011]
[1772787110533,1.2023277,2079.3,2078.6,0.0011]
[1772787111036,1.20244336,2079.1,2078.5,0.001]
[1772787111247,1.20244336,2079.1,2078.6,0.0011]
[1772787111738,1.20244336,2079.1,2078.3,0.001]
[1772787111739,3.2632037,2079.0,2078.3,0.001]
[1772787111921,1.60014958,2078.9,2078.3,0.0021]
[1772787112418,0.23471241,2078.8,2078.3,0.0021]
[1772787113024,1.20267474,2078.7,2078.3,0.0021]
[1772787113413,1.43738715,2078.7,2078.3,0.0021]
[1772787114039,1.28011978,2078.6,2078.3,0.0021]
[1772787114342,1.51483219,2078.6,2078.3,0.001]
[1772787115027,0.23471241,2078.5,2078.3,0.0021]
[1772787115414,0.23471241,2078.4,2078.3,0.0021]
[1772787115616,0.23471241,2078.5,2078.3,0.0021]
[1772787117538,0.23471241,2078.4,2078.3,0.0021]
[1772787118219,0.23471241,2078.4,2078.3,0.001]
[1772787119439,1.43756075,2078.4,2078.3,0.001]
[1772787119739,0.23471241,2078.4,2078.3,0.0021]
[1772787120314,1.28011978,2078.6,2078.3,0.001]
[1772787120923,1.51373219,2078.6,2078.3,0.001]
[1772787121125,1.51373219,2078.6,2078.5,0.0011]
[1772787122744,1.40962019,2078.6,2078.5,0.0011]
[1772787122946,0.001,2079.3,2078.5,0.0011]
[1772787122947,1.20333091,2079.3,2078.5,0.0011]
[1772787123147,1.40962019,2079.2,2078.5,0.0011]
[1772787123453,2.612025,2079.2,2078.5,0.0011]
[1772787124640,2.61200983,2079.2,2078.5,0.0011]
[1772787126757,1.40962019,2079.1,2078.5,0.0011]
[1772787127749,1.2025012,2079.0,2078.5,0.0011]
[1772787128249,1.20242978,2079.2,2078.5,0.0011]
[1772787128847,1.40962019,2079.1,2078.5,0.0011]
[1772787129242,1.40962019,2079.0,2078.5,0.0011]
[1772787129550,2.61201399,2079.2,2078.5,0.0011]
[1772787129750,1.40962019,2079.1,2078.5,0.0011]
[1772787130152,2.61206969,2079.1,2078.5,0.0011]
[1772787131224,0.001,2079.3,2078.5,0.0011]
[1772787131225,1.40962019,2079.0,2078.5,0.0011]
[1772787131434,1.40962019,2079.2,2078.5,0.0011]
[1772787132148,0.001,2079.3,2078.5,0.0011]
[1772787133360,0.001,2079.3,2078.7,0.0011]
[1772787133671,0.001,2079.3,2078.8,1.287]
[1772787134030,0.001,2079.3,2078.9,1.20255904]
[1772787138582,0.001,2079.3,2079.0,6.0]
[1772787140373,0.001,2079.3,2079.1,1.20244336]
[1772787141486,0.03889483,2079.6,2079.1,1.20244336]
[1772787142268,4.80747953,2080.1,2079.1,1.20244336]
[1772787142570,3.27317874,2080.0,2079.1,1.20244336]
[1772787142757,2.86105425,2079.9,2079.1,1.20244336]
[1772787142970,4.80747953,2080.1,2079.1,1.20244336]
[1772787143140,3.27312452,2080.0,2079.1,1.20244336]
[1772787143341,2.86100338,2079.9,2079.1,1.20244336]
[1772787143568,4.80747953,2080.1,2079.1,1.20244336]
[1772787143742,3.27288365,2080.0,2079.1,1.20244336]
[1772787143947,2.86079724,2079.9,2079.1,1.20244336]
[1772787144299,4.80747953,2080.1,2079.1,1.20244336]
[1772787144471,1.20198086,2079.9,2079.1,1.20244336]
[1772787145571,1.20198086,2079.9,2079.1,1.20354336]
[1772787145960,2.86182103,2079.8,2079.1,1.20354336]
[1772787146839,1.20209645,2079.7,2079.1,1.20354336]
[1772787147262,1.20207796,2079.8,2079.1,1.20354336]
[1772787148874,0.001,2079.9,2079.1,1.20354336]
[1772787149079,0.41258024,2079.8,2079.1,1.20354336]
[1772787149283,2.86525956,2079.7,2079.1,1.20354336]
[1772787149463,0.001,2079.9,2079.1,1.20354336]
[1772787149653,0.41263997,2079.8,2079.1,1.20354336]
[1772787149853,2.86576473,2079.7,2079.1,1.20354336]
[1772787150064,0.001,2079.9,2079.1,1.20354336]
[1772787150252,0.41264918,2079.8,2079.1,1.20354336]
[1772787150454,2.86576231,2079.7,2079.1,1.20354336]
[1772787150757,3.27834588,2079.6,2079.1,0.0011]
[1772787150957,1.20226988,2079.4,2079.1,0.0011]
[1772787151572,1.20226988,2079.4,2079.0,6.0]
[1772787152070,1.20226988,2079.4,2078.9,0.0011]
[1772787153398,2.86892187,2079.3,2078.9,0.0011]
[1772787153587,3.28196169,2079.2,2078.9,0.0011]
[1772787153790,2.86892187,2079.1,2078.9,0.0011]
[1772787154002,2.2893369,2079.4,2078.9,0.0011]
[1772787154167,3.28196871,2079.3,2078.9,0.0011]
[1772787154505,3.28196871,2079.2,2078.9,0.0011]
[1772787154703,2.86891864,2079.1,2078.9,0.0011]
[1772787154997,2.2893369,2079.5,2078.9,0.0011]
[1772787155290,3.28241501,2079.4,2078.9,0.0011]
[1772787155470,4.48479962,2079.3,2078.9,0.0011]
[1772787155686,3.28241501,2079.2,2078.9,0.0011]
[1772787155885,2.86929586,2079.1,2078.9,0.0011]
[1772787156193,1.20238461,2079.3,2078.9,0.0011]
[1772787156389,3.28298894,2079.2,2078.9,0.0011]
[1772787156594,2.86980317,2079.1,2078.9,0.0011]
[1772787156791,1.20238461,2079.3,2078.9,0.0011]
[1772787156996,3.28276393,2079.2,2078.9,0.0011]
[1772787157187,2.86961688,2079.1,2078.9,0.0011]
[1772787157386,1.20238461,2079.3,2078.9,0.0011]
[1772787157591,4.48646292,2079.2,2078.9,0.0011]
[1772787157790,2.87074251,2079.1,2078.9,0.0011]
[1772787158185,2.87174251,2079.1,2078.9,0.0011]
[1772787159803,1.2025012,2079.0,2078.9,0.0011]
[1772787160007,4.07324371,2079.0,2078.9,0.0011]
[1772787160207,1.2025012,2079.0,2078.9,0.0011]
[1772787160383,4.074215,2079.0,2078.9,0.0011]
[1772787160580,2.8717138,2079.0,2078.9,0.0011]
[1772787161291,2.87225905,2079.0,2078.9,0.0011]
[1772787161593,0.001,2079.1,2078.9,0.0011]
[1772787161797,2.8733393,2079.1,2078.9,0.0011]
[1772787162786,0.001,2079.1,2078.9,0.0011]
[1772787163201,2.87375269,2079.1,2078.9,0.0011]
[1772787163508,0.001,2079.1,2078.9,0.0011]
[1772787171285,1.20344336,2079.1,2078.9,0.0011]
[1772787171891,3.28490666,2079.0,2078.6,0.0011]
[1772787172100,3.28490666,2078.9,2078.6,0.0011]
[1772787172300,1.20344336,2079.1,2078.6,0.0011]
[1772787172519,3.28442934,2079.0,2078.6,0.0011]
[1772787172813,3.28442934,2078.9,2078.6,0.0011]
[1772787173013,1.20344336,2079.1,2078.6,0.0011]
[1772787173211,3.28350657,2079.0,2078.6,0.0011]
[1772787173417,1.20261689,2078.8,2078.6,0.0011]
[1772787175309,4.81080656,2079.1,2078.6,0.0011]
[1772787175618,3.28333346,2079.0,2078.6,0.0011]
[1772787175809,3.28333346,2078.9,2078.6,0.0011]
[1772787176009,4.81080656,2079.1,2078.6,0.0011]
[1772787176309,3.28333449,2079.0,2078.6,0.0011]
[1772787176506,3.28333449,2078.9,2078.6,0.0011]
[1772787176812,2.87014312,2078.8,2078.6,0.0011]
[1772787177117,4.81080656,2079.1,2078.6,0.0011]
[1772787177317,3.2836594,2079.0,2078.6,0.0011]
[1772787177622,1.20261689,2078.8,2078.6,0.0011]
[1772787178420,1.20261689,2078.8,2078.3,0.001]
[1772787178602,3.28441587,2078.7,2078.3,1.20390268]
[1772787178922,3.28441587,2078.6,2078.3,1.20390268]
[1772787179120,1.20261689,2078.8,2078.3,1.20390268]
[1772787179325,3.28427188,2078.7,2078.3,1.20390268]
[1772787179515,1.20257714,2078.9,2078.3,0.001]
[1772787179695,3.28470531,2078.8,2078.3,0.001]
[1772787179896,3.28470531,2078.7,2078.3,0.001]
[1772787180100,1.20257714,2078.9,2078.3,0.001]
[1772787180320,3.28488906,2078.8,2078.3,0.001]
[1772787180506,3.28488906,2078.7,2078.3,0.001]
[1772787180708,1.20257714,2078.9,2078.3,0.001]
[1772787180912,3.28602411,2078.8,2078.3,0.001]
[1772787181225,3.28602411,2078.7,2078.3,0.001]
[1772787181424,1.20267335,2078.8,2078.3,0.001]
[1772787181616,3.28582393,2078.7,2078.3,0.001]
[1772787181922,2.87236847,2078.6,2078.3,0.001]
[1772787182119,1.20267335,2078.8,2078.3,0.001]
[1772787182292,3.28549626,2078.7,2078.3,0.001]
[1772787182492,2.87203647,2078.6,2078.3,0.001]
[1772787182699,1.20267335,2078.8,2078.5,0.0011]
[1772787182916,3.28639219,2078.7,2078.5,0.0011]
[1772787183115,3.28639219,2078.6,2078.5,0.0011]
[1772787183518,4.48912479,2078.6,2078.5,0.0011]
[1772787186721,3.28639219,2078.6,2078.5,0.0011]
[1772787187231,4.48912479,2078.6,2078.5,0.0011]
[1772787193035,1.20288312,2078.4,2077.5,2.51435933]
[1772787193332,3.28239955,2078.3,2077.5,2.51435933]
[1772787193546,1.20288312,2078.4,2077.5,2.51435933]
[1772787193702,3.28197341,2078.3,2077.5,2.51435933]
[1772787193907,1.20288312,2078.4,2077.5,2.51435933]
[1772787194204,3.28204089,2078.3,2077.5,2.51435933]
[1772787194405,1.20288312,2078.4,2077.5,2.51435933]
[1772787194605,4.48504021,2078.3,2077.7,0.0011]
[1772787194835,1.20292199,2078.3,2077.7,0.0011]
[1772787196611,4.81240039,2078.4,2077.7,0.0011]
[1772787196612,0.001,2078.4,2077.7,0.0011]
[1772787196847,0.41293771,2078.3,2077.7,0.0011]
[1772787197046,0.001,2078.4,2077.7,0.0011]
[1772787197209,0.41294152,2078.3,2077.7,0.0011]
[1772787197411,0.001,2078.4,2077.7,0.0011]
[1772787197737,0.41296499,2078.3,2077.7,0.0011]
[1772787197921,0.001,2078.4,2077.7,0.0011]
[1772787198116,0.41299758,2078.3,2077.7,0.0011]
[1772787198433,0.001,2078.4,2077.7,0.0011]
[1772787198636,1.61595136,2078.3,2077.7,0.0011]
[1772787198939,1.20291865,2078.3,2077.7,0.0011]
[1772787199133,2.86977377,2078.2,2077.7,0.0011]
[1772787199339,1.20291865,2078.3,2077.7,0.0011]
[1772787199632,3.2831683,2078.2,2077.7,0.0011]
[1772787199838,1.20291865,2078.3,2077.7,0.0011]
[1772787200032,2.87012306,2078.2,2077.7,0.0011]
[1772787202754,4.0731059,2078.2,2077.7,1.20435359]
[1772787202926,1.20298284,2078.2,2077.7,1.20435359]
[1772787203530,1.20298284,2078.2,2077.7,0.0011]
[1772787205542,1.20384834,2078.4,2077.7,0.0011]
[1772787205841,3.28433654,2078.3,2077.7,0.0011]
[1772787206040,3.28433654,2078.2,2077.7,0.0011]
[1772787206218,1.20384834,2078.4,2077.7,0.0011]
[1772787206417,3.28512327,2078.3,2077.7,0.0011]
[1772787206740,3.28512327,2078.2,2077.7,0.0011]
[1772787206917,1.20384834,2078.4,2077.7,0.0011]
[1772787207115,3.28505793,2078.3,2077.7,0.0011]
[1772787207336,3.28505793,2078.2,2077.7,0.0011]
[1772787207522,1.20384834,2078.4,2077.9,0.0011]
[1772787207726,0.001,2078.1,2077.9,0.0011]
[1772787208442,2.87305205,2078.4,2077.9,0.0011]
[1772787208629,0.001,2078.4,2077.9,0.0011]
[1772787209945,2.87383268,2078.4,2077.9,0.0011]
[1772787211462,3.27565669,2078.3,2077.9,1.3191]
[1772787211668,1.20302199,2078.1,2077.9,0.0011]
[1772787213135,3.27653679,2078.0,2077.9,0.0011]
[1772787214038,4.47961667,2078.0,2077.9,0.0011]
[1772787214840,3.27653679,2078.0,2077.9,0.0011]
[1772787215842,4.47961667,2078.0,2077.9,0.0011]
[1772787216045,3.27653679,2078.0,2077.9,0.0011]
[1772787216972,4.47961667,2078.0,2077.9,0.0011]
[1772787217142,3.27653679,2078.0,2077.9,0.0011]
[1772787217836,4.47961667,2078.0,2077.9,0.0011]
[1772787218259,3.27653679,2078.0,2077.9,0.0011]
[1772787218444,1.20293865,2078.3,2077.9,0.0011]
[1772787218639,3.27816297,2078.2,2077.9,0.0011]
[1772787218844,3.27816297,2078.1,2077.9,0.0011]
[1772787219045,3.27824384,2078.0,2077.9,0.0011]
[1772787221656,1.20294022,2078.3,2077.9,0.0011]
[1772787221966,3.27986257,2078.2,2077.9,0.0011]
[1772787222154,3.27986257,2078.1,2077.9,0.0011]
[1772787222356,1.20294022,2078.3,2077.9,0.0011]
[1772787222547,3.26941231,2078.2,2077.9,0.0011]
[1772787222744,3.26941231,2078.1,2077.9,0.0011]
[1772787222944,3.26989949,2078.0,2077.9,0.0011]
[1772787223144,0.39271098,2078.0,2077.9,0.0011]
[1772787223766,3.27049729,2078.0,2077.9,0.0011]
[1772787226357,3.27245866,2078.0,2077.9,0.0011]
[1772787226556,3.27255092,2078.0,2077.9,0.0011]
[1772787227890,4.4756308,2078.0,2077.9,0.0011]
[1772787229275,3.27255092,2078.0,2077.9,0.0011]
[1772787229590,4.4756308,2078.0,2077.7,1.3151]
[1772787229892,1.20300071,2078.2,2077.7,2.51830054]
[1772787230056,3.27230812,2078.1,2077.7,2.51830054]
[1772787230257,3.27230812,2078.0,2077.7,2.51830054]
[1772787230581,1.20294884,2078.3,2077.7,2.51830054]
[1772787230761,3.27193837,2078.2,2077.7,2.51830054]
[1772787230966,3.27193837,2078.1,2077.7,2.51830054]
[1772787231188,1.20294884,2078.3,2077.7,2.51830054]
[1772787231366,3.27147654,2078.2,2077.7,2.51830054]
[1772787231568,3.27147654,2078.1,2077.7,2.51830054]
[1772787231765,2.29627815,2078.4,2077.9,0.0011]
[1772787231971,0.001,2078.0,2077.9,0.0011]
[1772787233170,0.001,2078.0,2077.9,1.3151]
[1772787233377,0.001,2078.0,2077.7,1.20433199]
[1772787233561,0.001,2078.0,2077.8,1.314]
[1772787234587,0.001,2078.0,2077.8,2.51714603]
[1772787235473,0.001,2078.0,2077.8,1.20314603]
[1772787235804,0.001,2078.0,2077.9,1.314]
[1772787241991,0.001,2078.0,2077.8,1.314]
[1772787243594,0.001,2078.0,2077.9,0.0011]
[1772787243794,0.39392034,2078.0,2077.9,0.0011]
[1772787249496,0.001,2078.4,2077.9,0.0011]
[1772787249695,2.87902645,2078.3,2077.9,0.0011]
[1772787249997,2.87902645,2078.2,2077.9,0.0011]
[1772787250195,1.20384882,2078.4,2077.9,0.0011]
[1772787250391,2.87887175,2078.3,2077.9,0.0011]
[1772787250594,2.87887175,2078.2,2077.9,0.0011]
[1772787250813,0.001,2078.4,2077.9,0.0011]
[1772787251286,2.87908708,2078.3,2077.9,0.0011]
[1772787252099,0.001,2078.4,2077.9,0.0011]
[1772787252493,2.87910555,2078.4,2077.9,0.0011]
[1772787255700,0.001,2078.2,2077.9,0.0011]
[1772787262500,0.001,2078.4,2077.9,0.0011]
[1772787266217,0.5567214,2078.9,2077.9,0.0011]
[1772787267615,0.5567214,2078.9,2077.9,1.4431]
[1772787267810,0.001,2078.9,2077.9,1.4431]
[1772787268320,0.001,2078.9,2078.0,1.20307988]
[1772787268526,0.5567214,2078.9,2078.0,1.20307988]
[1772787268692,0.001,2078.9,2078.1,2.67118599]
[1772787268897,0.001,2078.9,2078.2,1.319]
[1772787269303,0.5567214,2078.9,2078.2,1.319]
[1772787269619,0.001,2078.7,2078.2,1.319]
[1772787269790,0.5567214,2078.9,2078.2,1.319]
[1772787270394,0.5567214,2078.9,2078.3,1.20290622]
[1772787270594,0.5557214,2078.8,2078.2,1.20291164]
[1772787270823,0.5557214,2078.8,2078.4,1.32]
[1772787272100,0.5557214,2078.8,2078.1,0.0011]
[1772787272295,0.5557214,2078.8,2078.1,1.20409847]
[1772787272501,0.5557214,2078.6,2078.1,2.52409847]
[1772787273023,0.5557214,2078.8,2078.1,2.52409847]
[1772787273223,0.5557214,2078.8,2078.1,1.20409847]
[1772787273428,0.5557214,2078.8,2078.2,1.321]
[1772787275413,1.20267474,2078.7,2078.3,1.20290622]
[1772787275614,0.5557214,2078.6,2078.3,1.20290622]
[1772787275809,0.5557214,2078.6,2078.2,2.52391853]
[1772787276802,0.5557214,2078.6,2078.3,0.25132893]
[1772787277232,0.5557214,2078.6,2078.2,2.52391853]
[1772787279935,0.47272108,2078.5,2078.3,1.322]
[1772787280242,0.47272108,2078.3,2078.1,0.0011]
[1772787282935,0.47272108,2078.2,2078.1,0.0011]
[1772787286249,1.67568518,2078.2,2078.1,0.0011]
[1772787287742,0.47272108,2078.2,2078.1,0.0011]
[1772787288752,1.67568518,2078.2,2078.1,0.0011]
[1772787289047,5.15911263,2079.1,2078.3,0.45621029]
[1772787289048,0.47472108,2078.7,2078.3,0.45621029]
[1772787289248,0.47272108,2078.8,2078.3,0.45621029]
[1772787289547,0.47272108,2078.8,2078.1,0.0011]
[1772787289548,0.47272108,2078.8,2078.4,1.324]
[1772787289913,0.47272108,2078.6,2078.4,1.324]
[1772787290351,0.47272108,2078.6,2078.1,0.45731029]
[1772787290519,0.47272108,2078.6,2078.1,0.0011]
[1772787291647,0.47272108,2078.6,2078.1,1.20411676]
[1772787293125,4.81061044,2078.8,2078.1,0.45731029]
[1772787293126,0.47272108,2078.8,2078.1,0.45731029]
[1772787293447,0.47272108,2078.6,2078.1,0.45731029]
[1772787293814,0.47272108,2078.6,2078.3,0.0011]
[1772787294045,0.001,2078.5,2078.3,0.0011]
[1772787294240,0.47372108,2078.5,2078.3,0.0011]
[1772787297848,0.47272108,2078.4,2078.3,0.0011]
[1772787298559,0.47272108,2078.4,2078.0,0.0011]
[1772787298847,0.47272108,2078.4,2078.0,1.69810994]
[1772787299025,0.47272108,2078.4,2078.0,0.49505578]
[1772787299347,0.47272108,2078.4,2078.0,0.0011]
[1772787299522,1.20287988,2078.4,2078.0,0.0011]
[1772787299726,0.47610143,2078.3,2078.0,0.0011]
[1772787301637,0.47743294,2078.2,2078.0,0.0011]
[1772787302275,0.47743294,2078.2,2077.8,0.0011]
[1772787303770,1.20302199,2078.1,2077.8,0.0011]
[1772787303932,1.66781934,2078.1,2077.8,0.0011]
[1772787304266,0.46479735,2078.1,2077.8,0.0011]
[1772787304492,0.46479735,2078.4,2077.8,0.45261497]
[1772787304747,0.38079348,2078.3,2077.8,0.45261497]
[1772787304954,0.46479735,2078.4,2077.8,0.45261497]
[1772787305153,0.84559264,2078.3,2077.8,0.45261497]
[1772787305351,0.46479735,2078.3,2077.8,0.45261497]
[1772787305872,0.46479735,2078.3,2077.9,1.65465275]
[1772787306672,0.46479735,2078.3,2078.0,0.0011]
[1772787306870,0.001,2078.1,2078.0,0.0011]
[1772787307074,0.001,2078.1,2078.0,0.45261497]
[1772787307247,0.001,2078.5,2078.1,0.45151497]
[1772787307554,0.46579735,2078.5,2078.2,1.77851497]
[1772787307954,0.46479735,2078.4,2078.2,1.327]
[1772787308355,0.46479735,2078.4,2078.0,1.2041328]
[1772787308573,0.46479735,2078.4,2078.1,1.327]
[1772787309556,0.46479735,2078.4,2078.0,0.0011]
[1772787309874,1.20379778,2078.5,2077.8,0.0011]
[1772787309875,0.46479735,2078.0,2077.8,0.0011]
[1772787310048,0.46479735,2078.0,2077.5,0.0011]
[1772787310242,0.46479735,2078.0,2077.5,1.3291]
[1772787310571,0.46479735,2078.0,2077.5,0.0011]
[1772787310769,0.46479735,2078.0,2077.5,1.3291]
[1772787312158,0.48725552,2077.8,2077.5,1.3291]
[1772787312660,1.69038222,2078.0,2077.5,2.98682403]
[1772787312859,0.48725552,2077.9,2077.5,2.98682403]
[1772787313059,0.48725552,2077.9,2077.5,1.78346147]
[1772787313258,0.48725552,2077.9,2077.5,0.45546147]
[1772787313575,0.48725552,2077.9,2077.5,2.98682341]
[1772787313968,0.48725552,2077.9,2077.5,1.78346147]
[1772787314478,0.48725552,2078.4,2077.6,0.45546147]
[1772787314678,0.48725552,2078.2,2077.6,0.45546147]
[1772787314876,0.48725552,2078.2,2077.6,0.0011]
[1772787315872,0.48725552,2078.2,2077.2,0.0011]
[1772787315873,0.48725552,2077.8,2077.2,0.0011]
[1772787316048,0.48725552,2077.6,2077.2,1.65899752]
[1772787316250,0.48725552,2077.6,2077.2,1.65900374]
[1772787316956,5.30004079,2077.8,2077.3,0.45436147]
[1772787317350,0.48725552,2077.7,2077.3,0.45436147]
[1772787317783,0.40136603,2077.7,2077.3,0.45436147]
[1772787317984,0.40136603,2077.7,2077.2,2.53364227]
[1772787317985,0.40136603,2077.7,2077.2,0.0011]
[1772787318971,1.60467754,2077.6,2077.5,0.0011]
[1772787319684,1.20319568,2077.8,2077.5,0.0011]
[1772787320970,4.81332864,2078.0,2077.5,0.0011]
[1772787321166,2.86769432,2077.9,2077.3,0.0011]
[1772787323092,1.20319568,2077.8,2077.3,0.0011]
[1772787325184,4.81278275,2077.9,2077.3,0.0011]
[1772787325389,2.86651466,2077.8,2077.3,0.0011]
[1772787326088,2.86651466,2077.8,2076.9,0.54931698]
[1772787326089,0.14948499,2077.7,2076.9,0.54931698]
[1772787326382,0.14948499,2077.8,2076.9,0.54931698]
[1772787326589,2.8666192,2077.7,2076.9,0.54931698]
[1772787326792,5.31138234,2077.8,2076.8,0.37406411]
[1772787326959,2.8666192,2077.7,2076.8,0.37406411]
[1772787327160,1.20331151,2077.6,2076.8,0.92338109]
[1772787327361,2.8666192,2077.5,2076.8,0.92338109]
[1772787329401,1.20342736,2077.4,2076.9,0.54931698]
[1772787331068,0.48725552,2077.3,2076.9,0.45436147]
[1772787331392,0.48725552,2077.3,2076.6,0.18623258]
[1772787331599,0.48926744,2077.1,2077.0,0.0011]
[1772787332467,0.48926744,2077.1,2076.8,0.0011]
[1772787333009,0.48926744,2077.1,2076.5,0.18843258]
[1772787333596,0.45735847,2076.9,2076.5,0.0011]
[1772787334692,0.45735847,2077.0,2076.5,0.18843258]
[1772787335703,1.20371707,2076.9,2076.5,0.18843258]
[1772787336102,1.66106407,2077.0,2076.5,1.39237614]
[1772787336394,0.45735847,2077.0,2076.5,1.39237614]
[1772787336594,1.66101823,2077.0,2076.6,0.18733258]
[1772787336804,0.45574187,2076.9,2076.5,1.20504356]
[1772787336980,0.45574187,2076.9,2076.5,0.0011]
[1772787337377,0.45764408,2077.3,2076.6,0.18733258]
[1772787337603,0.45764408,2077.1,2076.6,1.39117255]
[1772787340105,1.66128949,2077.1,2076.6,1.39117255]
[1772787340503,0.45764408,2077.1,2076.7,0.18733258]
[1772787340881,1.66124887,2077.1,2076.7,0.18733258]
[1772787342306,1.66124887,2077.1,2076.7,1.39113778]
[1772787342476,0.45764408,2077.1,2076.7,1.39113778]
[1772787342676,0.45764408,2077.3,2076.8,0.18733258]
[1772787344287,0.45764408,2077.3,2076.8,0.18843258]
[1772787344500,0.001,2076.9,2076.8,1.39220761]
[1772787347119,0.001,2076.9,2076.8,1.20487503]
[1772787347414,0.001,2076.9,2076.8,0.18843258]
[1772787347612,0.001,2076.9,2076.7,1.325]
[1772787347812,0.46127464,2076.9,2076.6,0.18733258]
[1772787348109,0.46127464,2076.9,2076.6,1.325]
[1772787348314,0.46127464,2076.9,2076.5,1.39237753]
[1772787348687,0.46127464,2076.9,2076.5,0.0011]
[1772787348688,1.66404967,2076.8,2076.5,0.0011]
[1772787348902,0.46027464,2076.7,2076.5,0.0011]
[1772787349422,0.46027464,2076.7,2076.3,0.0011]
[1772787350616,0.46027464,2076.7,2076.0,0.18843258]
[1772787350815,0.46027464,2076.5,2075.9,1.20429579]
[1772787350991,0.46027464,2076.5,2075.9,2.53029579]
[1772787352593,0.46027464,2076.5,2075.9,2.53028997]
[1772787352794,0.46027464,2076.3,2075.9,2.53028997]
[1772787353945,0.46027464,2076.3,2075.9,1.20428997]
[1772787354806,0.46027464,2076.3,2075.9,1.39272255]
[1772787355423,0.46027464,2076.2,2075.9,1.39272255]
[1772787355722,0.46027464,2076.2,2075.9,1.20428997]
[1772787356421,0.46027464,2076.2,2076.1,0.0011]
[1772787356605,1.20404877,2076.4,2076.1,0.0011]
[1772787356606,0.46027464,2076.4,2076.1,0.0011]
[1772787356793,1.20394895,2076.5,2076.1,0.18953258]
[1772787356998,1.66422359,2076.5,2076.1,0.18953258]
[1772787357207,0.46027464,2076.4,2076.1,0.0011]
[1772787358834,0.46027464,2076.3,2076.1,0.0011]
[1772787359698,0.46027464,2076.3,2075.6,0.0011]
[1772787360329,0.46027464,2076.1,2075.6,0.0011]
[1772787360727,0.46027464,2075.9,2074.8,0.18953258]
[1772787360932,0.46027464,2075.7,2074.8,2.7224236]
[1772787361425,0.46027464,2075.7,2074.8,1.20489102]
[1772787361728,0.49722297,2075.5,2074.7,1.39448766]
[1772787361927,0.49722297,2075.5,2074.7,0.18953258]
[1772787362126,0.49722297,2075.5,2074.6,2.53400708]
[1772787362316,0.49722297,2075.5,2074.7,0.18953258]
[1772787362921,0.49722297,2075.5,2074.9,0.18953258]
[1772787364403,0.93874722,2075.8,2074.9,0.18953258]
[1772787364404,0.45144186,2075.7,2074.9,0.18953258]
[1772787364815,0.45144186,2075.7,2075.0,1.33]
[1772787365128,1.20447099,2075.6,2075.1,1.20476121]
[1772787365428,4.81773907,2075.7,2075.0,2.5347778]
[1772787365429,0.45144186,2075.5,2075.0,2.5347778]
[1772787366531,0.45144186,2075.5,2075.0,2.72431038]
[1772787367330,0.45144186,2075.5,2075.0,2.5347778]
[1772787367536,0.46712288,2075.4,2075.0,1.331]
[1772787367829,0.46712288,2075.4,2074.9,1.20482186]
[1772787367830,0.46712288,2075.4,2074.6,0.18953258]
[1772787368032,0.46712288,2075.4,2074.7,1.331]
[1772787368331,0.46712288,2075.4,2074.8,0.18953258]
[1772787369334,0.45208276,2075.6,2075.1,1.20476121]
[1772787369635,0.001,2075.4,2075.1,1.20476121]
[1772787370537,0.45208276,2075.3,2074.9,1.2059674]
[1772787370833,0.45308276,2075.4,2074.9,1.2059674]
[1772787371033,0.45308276,2075.4,2074.9,0.0011]
[1772787371233,0.45308276,2075.4,2074.9,1.20597637]
[1772787371434,0.45308276,2075.4,2074.9,0.19063258]
[1772787372131,0.001,2075.4,2074.9,0.19063258]
[1772787373308,0.93874722,2075.8,2075.0,0.18953258]
[1772787373511,0.93874722,2075.8,2075.2,0.18953258]
[1772787373725,0.93874722,2075.8,2075.4,0.18953258]
[1772787375343,0.74921464,2075.8,2075.3,1.333]
[1772787375523,0.74921464,2075.8,2075.4,1.20458706]
[1772787376039,0.74921464,2075.8,2075.0,4.81904486]